bitfinex-derivatives/quotes_BTCF0:USTF0_20250728
["timestamp","ask_amount","ask_price","bid_price","bid_amount"]
[1753742707135,0.09797,117900.0,117890.0,0.03572616]
[1753742707432,0.2227896,117880.0,117870.0,0.06065598]
[1753742707642,0.290074,117870.0,117860.0,1.40310438]
[1753742707833,0.290074,117870.0,117860.0,2.10582438]
[1753742707834,0.71096725,117870.0,117860.0,2.10582438]
[1753742708034,0.446034,117870.0,117860.0,2.10582438]
[1753742708234,0.483514,117870.0,117860.0,2.10582438]
[1753742708435,0.55666299,117870.0,117860.0,2.10582438]
[1753742709034,0.55266299,117870.0,117860.0,2.10582438]
[1753742709227,0.55266299,117870.0,117860.0,1.40310438]
[1753742709431,0.55266299,117870.0,117860.0,2.10550438]
[1753742709629,0.55366299,117870.0,117860.0,2.10550438]
[1753742709829,0.54872334,117870.0,117860.0,1.40310438]
[1753742710038,0.54872334,117870.0,117860.0,2.10542438]
[1753742710438,0.54872334,117870.0,117860.0,2.0447684]
[1753742710642,0.06920934,117870.0,117860.0,2.40631763]
[1753742710834,0.0424091,117900.0,117860.0,2.40631763]
[1753742710835,0.2919621,117890.0,117880.0,0.1696509]
[1753742711033,0.2919621,117890.0,117880.0,0.8720109]
[1753742711034,0.3719621,117890.0,117880.0,0.8720109]
[1753742711241,0.43848424,117890.0,117880.0,0.8720109]
[1753742711440,0.51718424,117890.0,117880.0,0.8720109]
[1753742711643,0.59484424,117890.0,117880.0,0.8720109]
[1753742711949,0.35365824,117890.0,117880.0,0.8720109]
[1753742712639,0.51301824,117890.0,117880.0,0.8720109]
[1753742712845,0.51301824,117890.0,117880.0,0.8720197]
[1753742713033,0.81391149,117890.0,117880.0,0.8720197]
[1753742713537,0.81391149,117890.0,117880.0,0.8717397]
[1753742713943,0.81491149,117890.0,117880.0,0.8717397]
[1753742714253,0.51401824,117890.0,117880.0,0.8717397]
[1753742714741,0.51401824,117890.0,117870.0,0.27274448]
[1753742714742,0.3692997,117880.0,117870.0,0.27274448]
[1753742714945,0.78019295,117880.0,117870.0,0.9138485]
[1753742715148,0.4792997,117880.0,117870.0,0.9138485]
[1753742715443,0.4792997,117880.0,117870.0,0.9137685]
[1753742715939,0.4802997,117880.0,117870.0,0.9137685]
[1753742716143,0.2806597,117880.0,117870.0,1.21466175]
[1753742716444,0.3181297,117880.0,117870.0,1.21466175]
[1753742717042,0.001,117880.0,117870.0,1.21466175]
[1753742717745,0.1706596,117880.0,117870.0,1.21466175]
[1753742717943,0.2081296,117880.0,117870.0,1.21466175]
[1753742718143,0.2081296,117880.0,117870.0,0.9137685]
[1753742718447,0.3816496,117880.0,117870.0,0.9137685]
[1753742719253,0.3816496,117880.0,117870.0,0.93400712]
[1753742719548,0.3381296,117880.0,117870.0,0.93400712]
[1753742720943,0.3381296,117880.0,117870.0,0.23232712]
[1753742721145,0.3381296,117880.0,117870.0,0.93364712]
[1753742721940,0.3816496,117880.0,117870.0,0.93364712]
[1753742722343,0.5002996,117880.0,117870.0,0.72123862]
[1753742722543,0.5002996,117880.0,117870.0,0.89091262]
[1753742723142,0.5002996,117880.0,117870.0,0.870674]
[1753742723343,0.5002996,117880.0,117870.0,0.169674]
[1753742723544,0.5002996,117880.0,117870.0,0.870354]
[1753742724445,0.224104,117870.0,117860.0,1.77059285]
[1753742724747,0.433304,117870.0,117860.0,2.1704996]
[1753742724950,0.459314,117870.0,117860.0,2.1280777]
[1753742725852,0.459314,117870.0,117860.0,2.1277577]
[1753742726552,0.459314,117870.0,117860.0,2.1287577]
[1753742727146,0.459314,117870.0,117860.0,2.1274377]
[1753742727351,0.460314,117870.0,117860.0,2.1274377]
[1753742727546,0.462314,117870.0,117860.0,2.1274377]
[1753742727752,0.3693284,117860.0,117850.0,0.01737619]
[1753742728054,0.3693284,117860.0,117850.0,0.88759899]
[1753742728258,0.4693284,117860.0,117850.0,0.01737619]
[1753742728456,0.77022165,117860.0,117850.0,0.71785619]
[1753742729159,0.77122165,117860.0,117850.0,0.71785619]
[1753742729450,0.2197972,117840.0,117830.0,0.00016922]
[1753742729653,0.4793572,117840.0,117830.0,0.00016922]
[1753742729958,0.4793572,117840.0,117830.0,0.70024922]
[1753742730165,0.3693572,117840.0,117830.0,0.70024922]
[1753742730668,0.3693572,117840.0,117830.0,0.86998072]
[1753742730967,0.3693572,117840.0,117830.0,0.87298072]
[1753742731168,0.3693572,117840.0,117830.0,0.17290072]
[1753742731465,0.3693572,117840.0,117830.0,0.87266072]
[1753742731666,0.4093572,117840.0,117830.0,0.17290072]
[1753742731863,0.4093572,117840.0,117830.0,0.87258072]
[1753742733368,0.41439729,117840.0,117830.0,0.87258072]
[1753742734072,0.2471872,117840.0,117830.0,1.17347397]
[1753742734271,0.2071872,117840.0,117830.0,1.17347397]
[1753742736471,0.1697172,117840.0,117830.0,1.17347397]
[1753742736671,0.207179,117850.0,117840.0,0.169717]
[1753742736977,0.2920206,117860.0,117850.0,0.1697027]
[1753742737177,0.31046798,117860.0,117850.0,1.16991595]
[1753742737472,0.35046798,117860.0,117850.0,1.16991595]
[1753742737665,0.39219798,117860.0,117850.0,1.16991595]
[1753742737862,0.43219798,117860.0,117850.0,1.16991595]
[1753742738065,0.39398798,117860.0,117850.0,1.16991595]
[1753742738465,0.39906427,117860.0,117850.0,1.16991595]
[1753742738666,0.39906427,117860.0,117850.0,0.8690227]
[1753742738869,0.51771427,117860.0,117850.0,0.8690227]
[1753742739176,0.51871427,117860.0,117850.0,0.8690227]
[1753742740375,0.3693427,117850.0,117840.0,0.2121381]
[1753742740577,0.3693427,117850.0,117840.0,0.9109781]
[1753742741373,0.3693427,117850.0,117840.0,0.9106581]
[1753742742877,0.3693427,117850.0,117840.0,0.2121381]
[1753742743076,0.3693427,117850.0,117840.0,0.9113781]
[1753742743380,0.3670827,117850.0,117840.0,0.1707097]
[1753742743581,0.3670827,117850.0,117840.0,0.8687897]
[1753742743582,0.4070827,117850.0,117840.0,0.8687897]
[1753742744580,0.2071727,117850.0,117840.0,1.16968295]
[1753742744785,0.2057427,117850.0,117840.0,1.16968295]
[1753742746480,0.2501627,117850.0,117840.0,1.16968295]
[1753742747179,0.3272427,117850.0,117840.0,1.16968295]
[1753742747388,0.3631927,117850.0,117840.0,0.8687897]
[1753742748383,0.3631927,117850.0,117840.0,0.8683097]
[1753742751581,0.2828227,117850.0,117840.0,0.8683097]
[1753742751776,0.3631927,117850.0,117840.0,1.16860295]
[1753742751980,0.3631927,117850.0,117840.0,0.8677097]
[1753742752579,0.3631927,117850.0,117840.0,0.698]
[1753742752880,0.3631927,117850.0,117840.0,0.69772]
[1753742753084,0.38168841,117850.0,117840.0,0.69772]
[1753742753277,0.80258166,117850.0,117840.0,0.69776]
[1753742753978,0.80258166,117850.0,117840.0,0.86721102]
[1753742754186,0.50168841,117850.0,117840.0,0.86721102]
[1753742754376,0.50168841,117850.0,117840.0,0.86705102]
[1753742759091,0.50168841,117850.0,117840.0,0.69733402]
[1753742759486,0.50168841,117850.0,117840.0,0.00073402]
[1753742759883,0.50168841,117850.0,117840.0,0.69681402]
[1753742760588,0.50168841,117850.0,117840.0,0.86653102]
[1753742762795,0.50168841,117850.0,117840.0,0.69681402]
[1753742763587,0.80258166,117850.0,117840.0,0.69681402]
[1753742764789,0.80258166,117850.0,117840.0,0.86653102]
[1753742764985,0.50168841,117850.0,117840.0,0.86653102]
[1753742765592,0.50168841,117850.0,117840.0,0.17045102]
[1753742765792,0.50168841,117850.0,117840.0,0.86597102]
[1753742766789,0.75843626,117850.0,117840.0,0.86597102]
[1753742767295,0.75843626,117850.0,117840.0,0.69625402]
[1753742767691,0.75843626,117850.0,117840.0,0.00073402]
[1753742767887,0.75843626,117850.0,117840.0,0.69617402]
[1753742768694,0.75843626,117850.0,117840.0,0.86589102]
[1753742768891,0.75843626,117850.0,117840.0,0.69617402]
[1753742770394,0.75843626,117850.0,117840.0,0.86589092]
[1753742771493,0.75843626,117850.0,117840.0,0.69617402]
[1753742772691,0.50168841,117850.0,117840.0,0.69617402]
[1753742772990,0.75843626,117850.0,117840.0,0.86589102]
[1753742773795,0.75843626,117850.0,117840.0,0.69617402]
[1753742775397,0.75843626,117850.0,117840.0,0.00073402]
[1753742775598,0.75843626,117850.0,117840.0,0.69553402]
[1753742776085,0.75843626,117850.0,117840.0,0.86525102]
[1753742776400,0.75843626,117850.0,117840.0,0.86505102]
[1753742776995,0.75843626,117850.0,117840.0,0.69533402]
[1753742779589,0.75843626,117850.0,117840.0,0.86505102]
[1753742781888,0.67806626,117850.0,117840.0,0.86485102]
[1753742782094,0.01849571,117850.0,117840.0,1.12159887]
[1753742782294,0.22479831,117850.0,117840.0,1.12159887]
[1753742782496,0.60154616,117850.0,117840.0,0.00073402]
[1753742782809,0.63573616,117850.0,117840.0,0.86497102]
[1753742783601,0.37898831,117850.0,117840.0,0.86497102]
[1753742784402,0.63573616,117850.0,117840.0,0.86497102]
[1753742784700,0.67573616,117850.0,117840.0,0.86525102]
[1753742787100,0.67573616,117850.0,117840.0,0.00073402]
[1753742787301,0.67573616,117850.0,117840.0,0.69597402]
[1753742787496,0.67573616,117850.0,117810.0,0.10309438]
[1753742787497,0.0772892,117840.0,117810.0,0.27285188]
[1753742787699,0.58242365,117820.0,117810.0,0.31529538]
[1753742788000,0.58242365,117820.0,117810.0,1.01081538]
[1753742788001,0.3605358,117820.0,117810.0,1.01081538]
[1753742788402,0.3605358,117820.0,117810.0,0.31529538]
[1753742788603,0.61728365,117820.0,117810.0,0.6958]
[1753742788797,0.2806402,117810.0,117800.0,0.27786168]
[1753742789002,0.61236727,117810.0,117800.0,0.97510168]
[1753742789597,0.35461942,117810.0,117800.0,0.97510168]
[1753742789798,0.35461942,117810.0,117800.0,0.27786168]
[1753742790105,0.35461942,117810.0,117800.0,0.70224]
[1753742790705,0.35461942,117810.0,117800.0,0.8720146]
[1753742791206,0.42420279,117810.0,117800.0,0.1747746]
[1753742791503,0.42420279,117810.0,117800.0,0.8720146]
[1753742791704,0.42420279,117810.0,117800.0,0.8750146]
[1753742792301,0.42929207,117810.0,117800.0,0.8750146]
[1753742792503,0.44784213,117810.0,117800.0,0.8750146]
[1753742793105,0.42929207,117810.0,117800.0,0.8750146]
[1753742793403,0.23850207,117810.0,117800.0,0.8744546]
[1753742793609,0.27001279,117810.0,117800.0,1.13120245]
[1753742794203,0.06965259,117810.0,117800.0,0.8744546]
[1753742794401,0.27601279,117810.0,117800.0,0.8744546]
[1753742794604,0.27601279,117810.0,117800.0,1.13120245]
[1753742799415,0.06965259,117810.0,117800.0,1.3879503]
[1753742800420,0.23941159,117810.0,117800.0,1.3879503]
[1753742800917,0.27601159,117810.0,117800.0,1.13120245]
[1753742802225,0.27601159,117810.0,117800.0,0.8744546]
[1753742802426,0.27601159,117810.0,117800.0,1.13120245]
[1753742807715,0.06965259,117810.0,117800.0,1.3879503]
[1753742807922,0.3671611,117830.0,117820.0,0.1697446]
[1753742808117,0.05491175,117830.0,117820.0,1.12193245]
[1753742808322,0.2061202,117830.0,117820.0,1.12193245]
[1753742808917,0.2491602,117830.0,117820.0,1.12193245]
[1753742809122,0.3606802,117830.0,117820.0,1.12193245]
[1753742809523,0.42716373,117830.0,117820.0,1.12193245]
[1753742812029,0.06748353,117830.0,117820.0,1.12193245]
[1753742812231,0.10387353,117830.0,117820.0,1.12193245]
[1753742813137,0.27360363,117830.0,117820.0,1.12193245]
[1753742813927,0.06748353,117830.0,117820.0,1.12193245]
[1753742814433,0.27360373,117830.0,117820.0,1.12193245]
[1753742815633,0.10387353,117830.0,117820.0,0.42649245]
[1753742815836,0.2061009,117850.0,117840.0,0.1697158]
[1753742816034,0.2061009,117850.0,117840.0,2.29470365]
[1753742816334,0.3596609,117850.0,117840.0,2.29462365]
[1753742817035,0.3606609,117850.0,117840.0,2.29462365]
[1753742817637,0.42834655,117850.0,117840.0,2.29462365]
[1753742817836,0.42734655,117850.0,117840.0,2.29462365]
[1753742818230,0.42834655,117850.0,117840.0,2.29462365]
[1753742819935,0.42834655,117850.0,117840.0,1.59998365]
[1753742820137,0.42834655,117850.0,117840.0,2.29414365]
[1753742820438,0.42834655,117850.0,117840.0,2.29402365]
[1753742821636,0.42834655,117850.0,117840.0,2.0372758]
[1753742821824,0.42834655,117850.0,117840.0,2.29402365]
[1753742822438,0.42834655,117850.0,117840.0,1.59998365]
[1753742822637,0.42834655,117850.0,117840.0,2.29390365]
[1753742822935,0.42834655,117850.0,117840.0,2.29454365]
[1753742832345,0.44686835,117850.0,117840.0,2.29454365]
[1753742838747,0.42834655,117850.0,117840.0,2.29454365]
[1753742846152,0.42834655,117850.0,117840.0,2.0377958]
[1753742846540,0.42834655,117850.0,117840.0,2.29454365]
[1753742846945,0.35094655,117850.0,117840.0,1.17352]
[1753742847147,0.70160491,117850.0,117840.0,1.17352]
[1753742847347,0.70160491,117850.0,117840.0,1.86592]
[1753742847749,0.47485706,117850.0,117840.0,1.86592]
[1753742849055,0.47485706,117850.0,117840.0,1.3432358]
[1753742849261,0.47485706,117850.0,117840.0,2.0356358]
[1753742849557,0.73160491,117850.0,117840.0,1.17352]
[1753742849752,0.3573046,117820.0,117810.0,0.24775539]
[1753742850162,0.3573046,117820.0,117810.0,0.77039729]
[1753742850346,0.3573046,117820.0,117810.0,0.94015629]
[1753742850860,0.3573046,117820.0,117810.0,0.94215629]
[1753742851455,0.3573046,117820.0,117810.0,0.88150031]
[1753742851754,0.3573046,117820.0,117810.0,1.13824816]
[1753742852052,0.3573046,117820.0,117810.0,1.13924816]
[1753742852858,0.3573046,117820.0,117810.0,1.13724816]
[1753742853157,0.3573046,117820.0,117810.0,1.13824816]
[1753742859264,0.2056646,117820.0,117810.0,1.13824816]
[1753742859564,0.2056646,117820.0,117810.0,1.19890414]
[1753742861862,0.2470146,117820.0,117810.0,1.19890414]
[1753742862063,0.3573046,117820.0,117810.0,1.19890414]
[1753742862664,0.3573046,117820.0,117810.0,0.50650414]
[1753742862967,0.3573046,117820.0,117810.0,1.13832816]
[1753742865267,0.4573046,117820.0,117810.0,1.13832816]
[1753742865563,0.3573046,117820.0,117810.0,1.13832816]
[1753742868366,0.2536746,117820.0,117810.0,1.13832816]
[1753742870568,0.2536746,117820.0,117810.0,1.19898414]
[1753742870960,0.2943846,117820.0,117810.0,1.19898414]
[1753742871267,0.3277946,117820.0,117810.0,1.19898414]
[1753742871468,0.3560946,117820.0,117810.0,1.19898414]
[1753742872465,0.3560946,117820.0,117810.0,0.50650414]
[1753742872663,0.3560946,117820.0,117810.0,1.19894414]
[1753742873162,0.3560946,117820.0,117810.0,1.13828816]
[1753742875175,0.2904249,117830.0,117820.0,0.1697446]
[1753742875375,0.4103249,117830.0,117820.0,0.42649245]
[1753742875576,0.4386249,117830.0,117820.0,0.42649245]
[1753742877973,0.5486249,117830.0,117820.0,0.42649245]
[1753742878175,0.4386249,117830.0,117820.0,0.42649245]
[1753742879673,0.4386249,117830.0,117820.0,1.11885245]
[1753742881378,0.3645049,117830.0,117820.0,1.11885245]
[1753742881781,0.2904249,117830.0,117820.0,1.11885245]
[1753742881986,0.2479893,117830.0,117820.0,1.11885245]
[1753742882876,0.2055544,117830.0,117820.0,1.11885245]
[1753742883071,0.2055433,117840.0,117830.0,0.1697302]
[1753742883279,0.2055433,117840.0,117830.0,0.55376925]
[1753742884477,0.22466109,117840.0,117830.0,0.55376925]
[1753742885083,0.37386109,117840.0,117830.0,0.55376925]
[1753742885782,0.37586109,117840.0,117830.0,0.55376925]
[1753742890286,0.37586109,117840.0,117830.0,0.2970214]
[1753742890488,0.37586109,117840.0,117830.0,0.55376925]
[1753742890789,0.3567433,117840.0,117830.0,0.55376925]
[1753742892088,0.2826233,117840.0,117830.0,0.55376925]
[1753742892287,0.3567433,117840.0,117830.0,0.55376925]
[1753742897578,0.2826233,117840.0,117830.0,0.55376925]
[1753742898189,0.3591333,117840.0,117830.0,0.55376925]
[1753742905801,0.03882,117840.0,117830.0,0.8105171]
[1753742906200,0.2085362,117840.0,117830.0,0.55376925]
[1753742906402,0.3561362,117840.0,117830.0,0.55376925]
[1753742907511,0.3551362,117840.0,117830.0,0.55376925]
[1753742908408,0.3531362,117840.0,117830.0,0.55376925]
[1753742909609,0.3531362,117840.0,117830.0,2.41920925]
[1753742910811,0.3531362,117840.0,117830.0,2.54747746]
[1753742916316,0.2766262,117840.0,117830.0,2.54747746]
[1753742916616,0.3183462,117840.0,117830.0,2.54747746]
[1753742916816,0.3531362,117840.0,117830.0,2.54747746]
[1753742919114,0.29528307,117840.0,117830.0,2.54747746]
[1753742919316,0.22419307,117840.0,117830.0,2.54747746]
[1753742921309,0.01865687,117840.0,117830.0,2.73998549]
[1753742921615,0.23639965,117850.0,117840.0,0.18668061]
[1753742921813,0.10072565,117850.0,117840.0,0.7642047]
[1753742922914,0.10072565,117850.0,117840.0,0.69986561]
[1753742923507,0.03291,117860.0,117850.0,0.1697022]
[1753742923719,0.03291,117860.0,117850.0,1.1182147]
[1753742924321,0.09976494,117860.0,117850.0,1.1182147]
[1753742924622,0.03291,117860.0,117850.0,1.1182147]
[1753742925424,0.03291,117870.0,117860.0,0.1696878]
[1753742925622,0.03291,117870.0,117860.0,0.4262803]
[1753742926222,0.2025834,117870.0,117860.0,0.4262803]
[1753742926916,0.2426034,117870.0,117860.0,0.4262803]
[1753742927222,0.3188034,117870.0,117860.0,0.4262803]
[1753742927521,0.3218034,117870.0,117860.0,0.4262803]
[1753742928022,0.07964,117870.0,117860.0,0.4262803]
[1753742928212,0.03591,117870.0,117860.0,0.4262803]
[1753742928414,0.03291,117870.0,117860.0,0.4262803]
[1753742928719,0.3552392,117890.0,117880.0,0.169659]
[1753742928916,0.4752392,117890.0,117880.0,1.374684]
[1753742929116,0.3881492,117890.0,117880.0,2.547884]
[1753742929420,0.4981492,117890.0,117880.0,2.547884]
[1753742929621,0.4981492,117890.0,117880.0,2.2912915]
[1753742930114,0.4981492,117890.0,117880.0,2.547884]
[1753742930315,0.5001492,117890.0,117880.0,2.547884]
[1753742930515,0.14691,117890.0,117880.0,2.547884]
[1753742930717,0.03691,117890.0,117880.0,2.547884]
[1753742931016,0.03591,117890.0,117880.0,2.547884]
[1753742931820,0.03591,117890.0,117880.0,2.56475633]
[1753742932325,0.03491,117890.0,117880.0,2.56475633]
[1753742932524,0.10316123,117890.0,117880.0,2.56475633]
[1753742932711,0.03491,117890.0,117880.0,2.56475633]
[1753742933119,0.03291,117890.0,117880.0,2.56475633]
[1753742933725,0.03291,117890.0,117880.0,2.56575633]
[1753742934025,0.26073962,117910.0,117880.0,2.39709733]
[1753742934227,0.3457131,117900.0,117890.0,0.2968715]
[1753742934526,0.2862931,117900.0,117890.0,0.3392816]
[1753742934825,0.3457131,117900.0,117890.0,0.3392816]
[1753742935419,0.3457131,117900.0,117890.0,0.5958741]
[1753742936025,0.4130865,117900.0,117890.0,0.5958741]
[1753742937734,0.2434534,117900.0,117890.0,0.5958741]
[1753742937932,0.4130836,117900.0,117890.0,0.5958741]
[1753742938429,0.2434534,117900.0,117890.0,0.5958741]
[1753742938633,0.1002834,117900.0,117890.0,0.5958741]
[1753742938831,0.0673734,117900.0,117890.0,0.5958741]
[1753742939034,0.39446437,117920.0,117910.0,0.1696158]
[1753742939226,0.54274805,117920.0,117910.0,1.1177683]
[1753742939532,0.50274805,117920.0,117910.0,1.1177683]
[1753742939834,0.51274805,117920.0,117910.0,1.1177683]
[1753742940233,0.51274805,117920.0,117910.0,0.4262083]
[1753742940535,0.57942226,117920.0,117910.0,1.1177283]
[1753742940735,0.58142226,117920.0,117910.0,1.1177283]
[1753742941035,0.57504989,117920.0,117910.0,1.1177283]
[1753742941231,0.0001,117930.0,117910.0,1.204705]
[1753742941535,0.03301,117930.0,117920.0,0.6827866]
[1753742941722,0.2025972,117930.0,117920.0,0.6827866]
[1753742942125,0.14923,117930.0,117920.0,0.6827866]
[1753742942321,0.3457672,117930.0,117920.0,0.6827866]
[1753742942528,0.3467672,117930.0,117920.0,0.6827866]
[1753742944136,0.3477672,117930.0,117920.0,0.6827866]
[1753742945837,0.3497672,117930.0,117920.0,0.6827866]
[1753742946832,0.3497672,117930.0,117920.0,1.3740666]
[1753742947338,0.3497672,117930.0,117920.0,0.6827866]
[1753742947640,0.3497672,117930.0,117920.0,1.3740666]
[1753742948342,0.3497672,117930.0,117920.0,0.6827866]
[1753742948640,0.3497672,117930.0,117920.0,1.3740666]
[1753742948939,0.3497672,117930.0,117920.0,1.3739866]
[1753742950842,0.3497672,117930.0,117920.0,0.6827866]
[1753742951240,0.3497672,117930.0,117920.0,1.3739466]
[1753742951942,0.3497672,117930.0,117920.0,0.6827866]
[1753742952137,0.3497672,117930.0,117920.0,1.3739466]
[1753742953340,0.3497672,117930.0,117920.0,0.6827866]
[1753742953651,0.3497672,117930.0,117920.0,1.3739066]
[1753742954447,0.3497672,117930.0,117920.0,0.6827866]
[1753742954744,0.3497672,117930.0,117920.0,1.3739066]
[1753742958849,0.2023917,117920.0,117910.0,0.3413968]
[1753742959144,0.4624317,117920.0,117910.0,1.4289925]
[1753742959354,0.4624317,117920.0,117910.0,2.1199925]
[1753742959552,0.4624317,117920.0,117910.0,2.2896086]
[1753742959853,0.4824317,117920.0,117910.0,2.2896086]
[1753742960149,0.4224317,117920.0,117910.0,2.2895686]
[1753742960448,0.4524317,117920.0,117910.0,2.2895686]
[1753742960643,0.4424317,117920.0,117910.0,2.2895686]
[1753742960844,0.3534317,117920.0,117910.0,2.2896086]
[1753742961046,0.3534317,117920.0,117910.0,1.5986086]
[1753742961252,0.4634317,117920.0,117910.0,2.2895686]
[1753742961452,0.3544317,117920.0,117910.0,2.2895686]
[1753742962150,0.4744317,117920.0,117910.0,2.2895686]
[1753742962348,0.3544317,117920.0,117910.0,2.2895686]
[1753742964752,0.3544317,117920.0,117910.0,2.2895686]
[1753742965252,0.4644317,117920.0,117910.0,2.2895686]
[1753742965951,0.3544317,117920.0,117910.0,2.2895686]
[1753742966753,0.4844317,117920.0,117910.0,2.2895686]
[1753742967053,0.3544317,117920.0,117910.0,2.2895686]
[1753742968247,0.4644317,117920.0,117910.0,2.0329361]
[1753742968451,0.4644317,117920.0,117910.0,2.2895286]
[1753742969246,0.4744317,117920.0,117910.0,2.2895286]
[1753742969849,0.49228242,117920.0,117910.0,2.2895286]
[1753742970053,0.49228242,117920.0,117910.0,2.1199125]
[1753742970448,0.49228242,117920.0,117910.0,2.2895285]
[1753742970648,0.49228242,117920.0,117910.0,2.1198725]
[1753742970849,0.49228242,117920.0,117910.0,1.4289925]
[1753742971055,0.49228242,117920.0,117910.0,2.1198725]
[1753742971653,0.49228242,117920.0,117910.0,2.2894885]
[1753742973153,0.49228242,117920.0,117910.0,1.5986085]
[1753742973352,0.49228242,117920.0,117910.0,2.2894885]
[1753742974169,0.49228242,117920.0,117910.0,2.2894485]
[1753742975064,0.49228242,117920.0,117910.0,1.5986085]
[1753742975262,0.49228242,117920.0,117910.0,2.2894085]
[1753742981165,0.49228242,117920.0,117910.0,1.5986085]
[1753742981373,0.49228242,117920.0,117910.0,2.2893685]
[1753742985369,0.1716014,117920.0,117910.0,2.2893685]
[1753742985578,0.2041814,117920.0,117910.0,2.2893685]
[1753742985770,0.03458,117920.0,117910.0,2.2893685]
[1753742986074,0.002,117920.0,117910.0,2.545961]
[1753742986274,0.002,117920.0,117910.0,2.808861]
[1753742993882,0.2041819,117920.0,117910.0,2.118101]
[1753742994084,0.2041819,117920.0,117910.0,2.808541]
[1753742995987,0.2041819,117920.0,117910.0,2.86959785]
[1753742998490,0.03458,117920.0,117910.0,2.86959785]
[1753743000991,0.2041819,117920.0,117910.0,2.86959785]
[1753743001886,0.2031819,117920.0,117910.0,2.86959785]
[1753743002093,0.2021819,117920.0,117910.0,2.87259785]
[1753743002592,0.03258,117920.0,117910.0,2.87259785]
[1753743002793,0.03258,117920.0,117910.0,2.87159785]
[1753743002995,0.3686639,117930.0,117920.0,0.1696019]
[1753743002996,0.0001,117930.0,117920.0,0.1696019]
[1753743003194,0.0001,117930.0,117920.0,1.3730669]
[1753743003386,0.2022675,117930.0,117920.0,1.3730669]
[1753743004287,0.03268,117930.0,117920.0,1.3730669]
[1753743004787,0.03268,117930.0,117920.0,1.3740669]
[1753743006696,0.0001,117930.0,117920.0,1.3740669]
[1753743007496,0.03258,117940.0,117930.0,0.1695875]
[1753743007697,0.03258,117940.0,117930.0,0.42618]
[1753743008487,0.2021531,117940.0,117930.0,0.42618]
[1753743008692,0.03258,117940.0,117930.0,0.42618]
[1753743008892,0.03358,117940.0,117930.0,0.42618]
[1753743009202,0.03458,117940.0,117930.0,0.42618]
[1753743010798,0.03458,117940.0,117930.0,0.43307699]
[1753743016708,0.03458,117940.0,117930.0,0.49413384]
[1753743018409,0.03458,117940.0,117930.0,0.43307699]
[1753743018707,0.03458,117940.0,117930.0,0.49413384]
[1753743018909,0.03458,117940.0,117930.0,0.43307699]
[1753743019306,0.03458,117940.0,117930.0,0.49413384]
[1753743019505,0.03458,117940.0,117930.0,0.75703384]
[1753743020403,0.03458,117940.0,117930.0,0.69597699]
[1753743020606,0.03458,117940.0,117930.0,0.75703384]
[1753743021505,0.3113563,117960.0,117950.0,0.1695588]
[1753743021812,0.20414,117960.0,117950.0,1.1159913]
[1753743022806,0.20714,117960.0,117950.0,1.1159913]
[1753743023109,0.27799147,117960.0,117950.0,1.1159913]
[1753743024110,0.44753587,117960.0,117950.0,1.1159913]
[1753743024303,0.45455995,117960.0,117950.0,1.1159913]
[1753743024703,0.44753587,117960.0,117950.0,1.1159913]
[1753743026915,0.27799147,117960.0,117950.0,1.1159913]
[1753743028514,0.24799147,117960.0,117950.0,1.1159913]
[1753743028814,0.10645147,117960.0,117950.0,1.1159913]
[1753743029011,0.6803255,118000.0,117950.0,1.8791775]
[1753743029012,0.07223,118000.0,117950.0,1.8791775]
[1753743029213,0.17414,117990.0,117980.0,0.1695156]
[1753743029412,0.19259804,117990.0,117980.0,1.1157481]
[1753743029715,0.36209934,117990.0,117980.0,1.1157481]
[1753743030223,0.3690317,117990.0,117980.0,1.1157481]
[1753743030802,0.36209934,117990.0,117980.0,0.4261081]
[1753743031008,0.36609934,117990.0,117980.0,1.1157081]
[1753743031209,0.48609934,117990.0,117980.0,1.1157081]
[1753743032417,0.49312657,117990.0,117980.0,1.1157081]
[1753743032719,0.49412657,117990.0,117980.0,1.1157081]
[1753743033218,0.57888267,117990.0,117980.0,0.2565925]
[1753743033417,0.57888267,117990.0,117970.0,0.57058601]
[1753743033418,0.3436556,117980.0,117970.0,0.57058601]
[1753743033615,0.48211364,117980.0,117970.0,1.21768421]
[1753743034818,0.48411364,117980.0,117970.0,0.68948]
[1753743035018,0.16953,117970.0,117960.0,1.6406759]
[1753743035323,0.7202625,117970.0,117960.0,1.17216]
[1753743035512,0.90825473,117970.0,117960.0,1.8616]
[1753743036421,0.90925473,117970.0,117960.0,1.8616]
[1753743037828,0.65266223,117970.0,117960.0,1.8616]
[1753743040326,0.65266223,117970.0,117960.0,1.17216]
[1753743040526,0.65266223,117970.0,117960.0,1.86156]
[1753743041729,0.48311823,117970.0,117960.0,1.86156]
[1753743042231,0.46467,117970.0,117960.0,1.86156]
[1753743042528,0.48313224,117970.0,117960.0,1.86156]
[1753743043231,0.46467,117970.0,117960.0,1.86156]
[1753743043434,0.48313347,117970.0,117960.0,1.86156]
[1753743044630,0.48313347,117970.0,117960.0,2.1181525]
[1753743044829,0.48313466,117970.0,117960.0,2.1181525]
[1753743045130,0.46467,117970.0,117960.0,2.1181525]
[1753743045732,0.46467,117970.0,117960.0,1.86156]
[1753743047239,0.46467,117970.0,117960.0,2.1181525]
[1753743047939,0.7212625,117970.0,117960.0,1.86152]
[1753743048238,0.46467,117970.0,117960.0,1.86152]
[1753743050045,0.46467,117970.0,117960.0,0.68936]
[1753743050238,0.2363843,117960.0,117950.0,0.2565925]
[1753743050447,0.3404487,117950.0,117940.0,0.31764935]
[1753743050744,0.4704487,117950.0,117940.0,1.00696935]
[1753743051642,0.4704487,117950.0,117940.0,0.9459125]
[1753743052042,0.4694487,117950.0,117940.0,0.9459125]
[1753743052438,0.4888968,117950.0,117940.0,0.9459125]
[1753743056242,0.4888968,117950.0,117940.0,0.2565925]
[1753743056446,0.3404631,117940.0,117930.0,1.1722]
[1753743056648,0.4689112,117940.0,117930.0,1.86148]
[1753743056845,0.6384952,117940.0,117930.0,2.1180725]
[1753743057648,0.4689112,117940.0,117930.0,2.1180725]
[1753743058547,0.4689112,117940.0,117930.0,2.28766]
[1753743058749,0.4689112,117940.0,117930.0,2.28866]
[1753743059045,0.4699112,117940.0,117930.0,2.28866]
[1753743059243,0.4699112,117940.0,117930.0,2.28766]
[1753743059436,0.4709112,117940.0,117930.0,2.1180725]
[1753743060239,0.4709112,117940.0,117930.0,2.2876599]
[1753743060648,0.4709112,117940.0,117930.0,2.1180725]
[1753743060847,0.4709112,117940.0,117930.0,1.4287925]
[1753743061046,0.4709112,117940.0,117930.0,2.1180325]
[1753743061547,0.4709112,117940.0,117930.0,2.2876199]
[1753743061944,0.4709112,117940.0,117930.0,2.1180325]
[1753743062447,0.4709112,117940.0,117930.0,2.2876199]
[1753743062649,0.47100357,117940.0,117930.0,2.2876199]
[1753743062840,0.40095357,117940.0,117930.0,2.2876199]
[1753743063041,0.30011357,117940.0,117930.0,2.2876199]
[1753743063247,0.2815731,117940.0,117930.0,2.2876199]
[1753743063637,0.1715731,117940.0,117930.0,2.2876199]
[1753743063843,0.171573,117940.0,117930.0,2.2876199]